[Event "Titled Tuesday Blitz March 14 Late 2023"]
[White "Wang, Alexander J"]
[Black "Cuenca Jimenez, Jose Fernando"]
[WhiteFideId "30955270"]
[BlackFideId "2255570"]
[WhiteElo "2259"]
[BlackElo "2429"]
[Result "0-1"]
[Round "10"]
[TimeControl "180+2"]
[Date "2023.03.14"]
[WhiteClock "0:00:39"]
[BlackClock "0:00:26"]

1. e4 {[%clk 0:02:59]}  d6 {[%clk 0:02:59]} 2. d4 {[%clk 0:02:59]}  Nf6 {[%clk 0:02:59]} 3. Nc3 {[%clk 0:02:58]}  e5 {[%clk 0:03:00]} 4. dxe5 {[%clk 0:02:57]}  dxe5 {[%clk 0:03:01]} 5. Qxd8+ {[%clk 0:02:57]}  Kxd8 {[%clk 0:03:02]} 6. Nf3 {[%clk 0:02:57]}  Bd6 {[%clk 0:03:01]} 7. Bc4 {[%clk 0:02:56]}  Ke7 {[%clk 0:03:02]} 8. h3 {[%clk 0:02:55]}  c6 {[%clk 0:03:02]} 9. Bg5 {[%clk 0:02:54]}  b5 {[%clk 0:02:59]} 10. Bd3 {[%clk 0:02:54]}  h6 {[%clk 0:02:59]} 11. Be3 {[%clk 0:02:53]}  Nbd7 {[%clk 0:02:57]} 12. a3 {[%clk 0:02:52]}  a5 {[%clk 0:02:57]} 13. Ne2 {[%clk 0:02:50]}  Ne8 {[%clk 0:02:49]} 14. Ng3 {[%clk 0:02:49]}  g6 {[%clk 0:02:48]} 15. h4 {[%clk 0:02:44]}  h5 {[%clk 0:02:35]} 16. c4 {[%clk 0:02:43]}  b4 {[%clk 0:02:22]} 17. axb4 {[%clk 0:02:39]}  Bxb4+ {[%clk 0:02:20]} 18. Bd2 {[%clk 0:02:33]}  Bxd2+ {[%clk 0:02:04]} 19. Kxd2 {[%clk 0:02:34]}  Nc5 {[%clk 0:02:03]} 20. Bc2 {[%clk 0:02:28]}  f6 {[%clk 0:01:56]} 21. b4 {[%clk 0:02:25]}  Nb7 {[%clk 0:01:54]} 22. bxa5 {[%clk 0:02:11]}  Rxa5 {[%clk 0:01:47]} 23. Rxa5 {[%clk 0:02:10]}  Nxa5 {[%clk 0:01:47]} 24. Kc3 {[%clk 0:02:09]}  c5 {[%clk 0:01:45]} 25. Ra1 {[%clk 0:02:08]}  Nc6 {[%clk 0:01:45]} 26. Nf1 {[%clk 0:02:03]}  Nd4 {[%clk 0:01:30]} 27. Ne3 {[%clk 0:02:02]}  Nc7 {[%clk 0:01:20]} 28. Ra7 {[%clk 0:01:59]}  Kd6 {[%clk 0:01:20]} 29. Nd5 {[%clk 0:01:50]}  Ncb5+ {[%clk 0:01:17]} 30. cxb5 {[%clk 0:01:45]}  Nxb5+ {[%clk 0:01:17]} 31. Kc4 {[%clk 0:01:45]}  Nxa7 {[%clk 0:01:16]} 32. Nxf6 {[%clk 0:01:44]}  Be6+ {[%clk 0:01:15]} 33. Nd5 {[%clk 0:01:44]}  Nc6 {[%clk 0:01:12]} 34. Ng5 {[%clk 0:01:38]}  Rb8 {[%clk 0:00:54]} 35. Nxe6 {[%clk 0:01:32]}  Na5+ {[%clk 0:00:51]} 36. Kc3 {[%clk 0:01:27]}  Kxe6 {[%clk 0:00:52]} 37. Ba4 {[%clk 0:01:21]}  Kd6 {[%clk 0:00:50]} 38. Ne3 {[%clk 0:01:17]}  Rb4 {[%clk 0:00:48]} 39. Bc2 {[%clk 0:01:16]}  Rd4 {[%clk 0:00:40]} 40. f3 {[%clk 0:01:10]}  c4 {[%clk 0:00:39]} 41. Kb4 {[%clk 0:01:03]}  Nc6+ {[%clk 0:00:39]} 42. Kc3 {[%clk 0:01:02]}  Kc5 {[%clk 0:00:39]} 43. g4 {[%clk 0:00:58]}  Na7 {[%clk 0:00:38]} 44. gxh5 {[%clk 0:00:55]}  Nb5+ {[%clk 0:00:36]} 45. Kb2 {[%clk 0:00:55]}  gxh5 {[%clk 0:00:35]} 46. Nf5 {[%clk 0:00:55]}  Rd2 {[%clk 0:00:35]} 47. Kc1 {[%clk 0:00:53]}  Rf2 {[%clk 0:00:33]} 48. Ng3 {[%clk 0:00:53]}  Nd4 {[%clk 0:00:30]} 49. Bd1 {[%clk 0:00:51]}  c3 {[%clk 0:00:31]} 50. Nh1 {[%clk 0:00:41]}  Rh2 {[%clk 0:00:28]} 51. Ng3 {[%clk 0:00:41]}  c2 {[%clk 0:00:27]} 52. Nxh5 {[%clk 0:00:39]}  Rh1 {[%clk 0:00:26]} 53. Kb2 {[%clk 0:00:39]}  cxd1=Q {[%clk 0:00:26]} 54. Nf4 {[%clk 0:00:39]}  Qa1# {[%clk 0:00:26]} 0-1


[Site "https://www.chess.com"]

[Event "Titled Tuesday Blitz March 14 Late 2023"]
[White "Senft, Sean"]
[Black "Fernandez Garcia, Gumersindo"]
[WhiteFideId "2044960"]
[BlackFideId "24516740"]
[WhiteElo "1989"]
[BlackElo "2093"]
[Result "0-1"]
[Round "10"]
[TimeControl "180+2"]
[Date "2023.03.14"]
[WhiteClock "0:01:13"]
[BlackClock "0:00:16"]

1. e4 {[%clk 0:02:58]}  c5 {[%clk 0:02:08]} 2. Nc3 {[%clk 0:02:57]}  g6 {[%clk 0:02:08]} 3. f4 {[%clk 0:02:58]}  Bg7 {[%clk 0:02:07]} 4. Nf3 {[%clk 0:02:58]}  Nc6 {[%clk 0:02:07]} 5. Bc4 {[%clk 0:02:59]}  e6 {[%clk 0:02:07]} 6. d3 {[%clk 0:03:00]}  Nge7 {[%clk 0:02:06]} 7. O-O {[%clk 0:03:00]}  O-O {[%clk 0:02:06]} 8. Kh1 {[%clk 0:03:00]}  d5 {[%clk 0:02:05]} 9. Bb3 {[%clk 0:03:00]}  Nd4 {[%clk 0:02:00]} 10. Nxd4 {[%clk 0:03:01]}  cxd4 {[%clk 0:02:01]} 11. Ne2 {[%clk 0:03:02]}  Bd7 {[%clk 0:01:54]} 12. Qe1 {[%clk 0:03:01]}  Bc6 {[%clk 0:01:53]} 13. f5 {[%clk 0:02:55]}  exf5 {[%clk 0:01:48]} 14. exf5 {[%clk 0:02:51]}  Nxf5 {[%clk 0:01:48]} 15. Rxf5 {[%clk 0:02:51]}  gxf5 {[%clk 0:01:46]} 16. Ng3 {[%clk 0:02:51]}  Qh4 {[%clk 0:01:32]} 17. Qf2 {[%clk 0:02:48]}  f4 {[%clk 0:01:27]} 18. Bxf4 {[%clk 0:02:47]}  Rfe8 {[%clk 0:01:21]} 19. Rf1 {[%clk 0:02:46]}  a5 {[%clk 0:01:02]} 20. a4 {[%clk 0:02:42]}  Re7 {[%clk 0:00:59]} 21. Qf3 {[%clk 0:02:41]}  Qf6 {[%clk 0:00:50]} 22. Qg4 {[%clk 0:02:33]}  Qg6 {[%clk 0:00:49]} 23. Qf3 {[%clk 0:02:20]}  Rae8 {[%clk 0:00:49]} 24. Nh5 {[%clk 0:02:15]}  Re1 {[%clk 0:00:47]} 25. Nxg7 {[%clk 0:02:13]}  Qxg7 {[%clk 0:00:44]} 26. h3 {[%clk 0:02:13]}  Rxf1+ {[%clk 0:00:44]} 27. Qxf1 {[%clk 0:02:13]}  Qf6 {[%clk 0:00:43]} 28. Qf3 {[%clk 0:02:11]}  Re1+ {[%clk 0:00:43]} 29. Kh2 {[%clk 0:02:11]}  Re6 {[%clk 0:00:35]} 30. Qg3+ {[%clk 0:01:55]}  Qg6 {[%clk 0:00:35]} 31. Qh4 {[%clk 0:01:55]}  Kg7 {[%clk 0:00:29]} 32. Bg3 {[%clk 0:01:48]}  h5 {[%clk 0:00:28]} 33. Qf4 {[%clk 0:01:47]}  Re2 {[%clk 0:00:23]} 34. Qf3 {[%clk 0:01:38]}  Re3 {[%clk 0:00:19]} 35. Qf4 {[%clk 0:01:36]}  Qf6 {[%clk 0:00:16]} 36. Qc7 {[%clk 0:01:19]}  h4 {[%clk 0:00:16]} 37. Bf4 {[%clk 0:01:19]}  Re2 {[%clk 0:00:17]} 38. c3 {[%clk 0:01:14]}  Qg6 {[%clk 0:00:16]} 39. Be5+ {[%clk 0:01:13]}  Kh7 {[%clk 0:00:16]} 0-1


[Site "https://www.chess.com"]

[Event "Titled Tuesday Blitz March 14 Late 2023"]
[White "Pino Perez, Lazaro"]
[Black "Postma, Dinant"]
[WhiteFideId "3517055"]
[BlackFideId "1018612"]
[WhiteElo "2170"]
[BlackElo "2513"]
[Result "1-0"]
[Round "10"]
[TimeControl "180+2"]
[Date "2023.03.14"]
[WhiteClock "0:00:19"]
[BlackClock "0:00:03"]

1. d4 {[%clk 0:03:00]}  d5 {[%clk 0:02:51]} 2. Bf4 {[%clk 0:03:00]}  c5 {[%clk 0:02:44]} 3. e3 {[%clk 0:03:00]}  Nc6 {[%clk 0:02:44]} 4. Nf3 {[%clk 0:02:58]}  Nf6 {[%clk 0:02:41]} 5. Nbd2 {[%clk 0:02:58]}  cxd4 {[%clk 0:02:29]} 6. exd4 {[%clk 0:02:59]}  Bg4 {[%clk 0:02:27]} 7. c3 {[%clk 0:02:57]}  e6 {[%clk 0:02:22]} 8. Qb3 {[%clk 0:02:49]}  Qc8 {[%clk 0:02:13]} 9. h3 {[%clk 0:02:41]}  Bh5 {[%clk 0:02:11]} 10. Ne5 {[%clk 0:02:41]}  Nxe5 {[%clk 0:01:51]} 11. Bxe5 {[%clk 0:02:42]}  Nd7 {[%clk 0:01:49]} 12. Bg3 {[%clk 0:02:39]}  Be7 {[%clk 0:01:47]} 13. Bd3 {[%clk 0:02:39]}  O-O {[%clk 0:01:44]} 14. O-O {[%clk 0:02:39]}  Bg6 {[%clk 0:01:41]} 15. Bxg6 {[%clk 0:02:35]}  hxg6 {[%clk 0:01:42]} 16. Nf3 {[%clk 0:02:32]}  a5 {[%clk 0:01:33]} 17. a4 {[%clk 0:02:28]}  Ra6 {[%clk 0:01:32]} 18. Rfe1 {[%clk 0:02:21]}  Rb6 {[%clk 0:01:28]} 19. Qc2 {[%clk 0:02:21]}  Qc4 {[%clk 0:01:24]} 20. Nd2 {[%clk 0:02:11]}  Qc6 {[%clk 0:01:20]} 21. Bf4 {[%clk 0:02:11]}  Rc8 {[%clk 0:01:16]} 22. g3 {[%clk 0:02:06]}  Ra6 {[%clk 0:01:02]} 23. h4 {[%clk 0:02:03]}  b5 {[%clk 0:00:58]} 24. axb5 {[%clk 0:02:04]}  Qxb5 {[%clk 0:00:55]} 25. Nf3 {[%clk 0:02:01]}  a4 {[%clk 0:00:50]} 26. Kg2 {[%clk 0:02:01]}  Nf6 {[%clk 0:00:46]} 27. Ne5 {[%clk 0:01:51]}  Bd6 {[%clk 0:00:41]} 28. Nd3 {[%clk 0:01:43]}  Bxf4 {[%clk 0:00:32]} 29. Nxf4 {[%clk 0:01:43]}  a3 {[%clk 0:00:32]} 30. Rxa3 {[%clk 0:01:37]}  Rxa3 {[%clk 0:00:31]} 31. bxa3 {[%clk 0:01:38]}  Qa5 {[%clk 0:00:31]} 32. Re3 {[%clk 0:01:23]}  Qxa3 {[%clk 0:00:29]} 33. f3 {[%clk 0:01:14]}  Rb8 {[%clk 0:00:26]} 34. Re2 {[%clk 0:01:14]}  Rb3 {[%clk 0:00:21]} 35. Qa2 {[%clk 0:01:09]}  Rxc3 {[%clk 0:00:18]} 36. Qxa3 {[%clk 0:01:06]}  Rxa3 {[%clk 0:00:19]} 37. Rb2 {[%clk 0:01:06]}  Ra4 {[%clk 0:00:11]} 38. Rb8+ {[%clk 0:01:03]}  Kh7 {[%clk 0:00:11]} 39. Nh3 {[%clk 0:00:59]}  g5 {[%clk 0:00:09]} 40. Nxg5+ {[%clk 0:00:56]}  Kg6 {[%clk 0:00:09]} 41. Rb7 {[%clk 0:00:56]}  Rxd4 {[%clk 0:00:07]} 42. Nxf7 {[%clk 0:00:52]}  Rd2+ {[%clk 0:00:06]} 43. Kh3 {[%clk 0:00:48]}  d4 {[%clk 0:00:07]} 44. g4 {[%clk 0:00:45]}  Nd5 {[%clk 0:00:07]} 45. h5+ {[%clk 0:00:40]}  Kh7 {[%clk 0:00:05]} 46. Ng5+ {[%clk 0:00:37]}  Kg8 {[%clk 0:00:05]} 47. Nxe6 {[%clk 0:00:37]}  d3 {[%clk 0:00:05]} 48. g5 {[%clk 0:00:29]}  Re2 {[%clk 0:00:03]} 49. g6 {[%clk 0:00:19]} 1-0


[Site "https://www.chess.com"]

[Event "Titled Tuesday Blitz March 14 Late 2023"]
[White "Sokolin, Leonid"]
[Black "Hoffmann, Asa"]
[WhiteFideId "2009161"]
[BlackFideId "2001470"]
[WhiteElo "2394"]
[BlackElo "2117"]
[Result "1-0"]
[Round "10"]
[TimeControl "180+2"]
[Date "2023.03.14"]
[WhiteClock "0:01:07"]
[BlackClock "0:00:50"]

1. e4 {[%clk 0:03:00]}  d6 {[%clk 0:02:54]} 2. d4 {[%clk 0:03:00]}  Nf6 {[%clk 0:02:50]} 3. Nc3 {[%clk 0:02:59]}  c6 {[%clk 0:02:50]} 4. Bd3 {[%clk 0:02:57]}  e5 {[%clk 0:02:48]} 5. Nge2 {[%clk 0:02:57]}  Be7 {[%clk 0:02:47]} 6. f3 {[%clk 0:02:52]}  Nbd7 {[%clk 0:02:43]} 7. Be3 {[%clk 0:02:50]}  O-O {[%clk 0:02:41]} 8. Qd2 {[%clk 0:02:50]}  b5 {[%clk 0:02:38]} 9. a3 {[%clk 0:02:49]}  a6 {[%clk 0:02:36]} 10. O-O {[%clk 0:02:46]}  Bb7 {[%clk 0:02:36]} 11. Ng3 {[%clk 0:02:44]}  Re8 {[%clk 0:02:33]} 12. Nf5 {[%clk 0:02:42]}  Bf8 {[%clk 0:02:33]} 13. Rad1 {[%clk 0:02:37]}  d5 {[%clk 0:02:33]} 14. dxe5 {[%clk 0:02:20]}  Nxe5 {[%clk 0:02:31]} 15. Bg5 {[%clk 0:02:20]}  Nxd3 {[%clk 0:02:25]} 16. cxd3 {[%clk 0:02:19]}  dxe4 {[%clk 0:02:16]} 17. fxe4 {[%clk 0:02:17]}  Re6 {[%clk 0:02:06]} 18. d4 {[%clk 0:02:12]}  Qe8 {[%clk 0:01:52]} 19. e5 {[%clk 0:02:11]}  Nd5 {[%clk 0:01:49]} 20. Ne4 {[%clk 0:02:11]}  f6 {[%clk 0:01:38]} 21. Bh4 {[%clk 0:01:26]}  fxe5 {[%clk 0:01:35]} 22. Ng5 {[%clk 0:01:26]}  Rg6 {[%clk 0:01:26]} 23. Rde1 {[%clk 0:01:27]}  Bc8 {[%clk 0:01:11]} 24. Rxe5 {[%clk 0:01:26]}  Qd8 {[%clk 0:01:02]} 25. Ne6 {[%clk 0:01:20]}  Bxe6 {[%clk 0:00:57]} 26. Bxd8 {[%clk 0:01:18]}  Rxd8 {[%clk 0:00:57]} 27. Qf2 {[%clk 0:01:12]}  Rf6 {[%clk 0:00:51]} 28. Rxe6 {[%clk 0:01:07]}  Rxe6 {[%clk 0:00:50]} 29. Nh6+ {[%clk 0:01:07]} 1-0


[Site "https://www.chess.com"]

[Event "Titled Tuesday Blitz March 14 Late 2023"]
[White "Mickiewicz, Piotr"]
[Black "ArchibaldCerveza29"]
[WhiteFideId "1114891"]
[WhiteElo "2246"]
[BlackElo "2491"]
[Result "0-1"]
[Round "10"]
[TimeControl "180+2"]
[Date "2023.03.14"]
[WhiteClock "0:00:23"]
[BlackClock "0:00:15"]

1. Nf3 {[%clk 0:03:00]}  d5 {[%clk 0:02:58]} 2. c4 {[%clk 0:02:57]}  e6 {[%clk 0:02:56]} 3. g3 {[%clk 0:02:57]}  Nf6 {[%clk 0:02:55]} 4. Bg2 {[%clk 0:02:56]}  Be7 {[%clk 0:02:56]} 5. b3 {[%clk 0:02:55]}  O-O {[%clk 0:02:56]} 6. Bb2 {[%clk 0:02:54]}  b6 {[%clk 0:02:56]} 7. O-O {[%clk 0:02:52]}  Bb7 {[%clk 0:02:57]} 8. e3 {[%clk 0:02:51]}  c5 {[%clk 0:02:49]} 9. Qe2 {[%clk 0:02:50]}  dxc4 {[%clk 0:02:46]} 10. bxc4 {[%clk 0:02:48]}  Nc6 {[%clk 0:02:46]} 11. d3 {[%clk 0:02:46]}  Qc7 {[%clk 0:02:41]} 12. Nc3 {[%clk 0:02:43]}  Rfd8 {[%clk 0:02:41]} 13. a3 {[%clk 0:02:34]}  Na5 {[%clk 0:02:39]} 14. Rfd1 {[%clk 0:02:16]}  Rd7 {[%clk 0:02:39]} 15. Nb5 {[%clk 0:02:14]}  Qc8 {[%clk 0:02:29]} 16. Ne5 {[%clk 0:02:14]}  Rd8 {[%clk 0:02:22]} 17. f4 {[%clk 0:02:12]}  Bxg2 {[%clk 0:02:22]} 18. Qxg2 {[%clk 0:02:08]}  a6 {[%clk 0:01:58]} 19. Nc3 {[%clk 0:02:07]}  Ra7 {[%clk 0:01:58]} 20. Rab1 {[%clk 0:02:04]}  Qa8 {[%clk 0:01:54]} 21. Ba1 {[%clk 0:02:02]}  Qxg2+ {[%clk 0:01:50]} 22. Kxg2 {[%clk 0:02:02]}  Rb7 {[%clk 0:01:51]} 23. Kf3 {[%clk 0:01:56]}  Kf8 {[%clk 0:01:49]} 24. g4 {[%clk 0:01:55]}  Nd7 {[%clk 0:01:49]} 25. Na4 {[%clk 0:01:45]}  b5 {[%clk 0:01:34]} 26. cxb5 {[%clk 0:01:40]}  axb5 {[%clk 0:01:35]} 27. Nc3 {[%clk 0:01:32]}  Nxe5+ {[%clk 0:01:31]} 28. fxe5 {[%clk 0:01:33]}  b4 {[%clk 0:01:26]} 29. axb4 {[%clk 0:01:34]}  cxb4 {[%clk 0:01:21]} 30. Ne4 {[%clk 0:01:33]}  Rc8 {[%clk 0:01:14]} 31. Nd6 {[%clk 0:01:25]}  Bxd6 {[%clk 0:01:11]} 32. exd6 {[%clk 0:01:25]}  f6 {[%clk 0:01:03]} 33. g5 {[%clk 0:01:24]}  fxg5 {[%clk 0:00:58]} 34. Ke4 {[%clk 0:01:24]}  Ke8 {[%clk 0:00:56]} 35. Rf1 {[%clk 0:01:21]}  b3 {[%clk 0:00:51]} 36. Bb2 {[%clk 0:01:14]}  Kd7 {[%clk 0:00:34]} 37. Bxg7 {[%clk 0:00:57]}  Rb4+ {[%clk 0:00:20]} 38. d4 {[%clk 0:00:55]}  Nc4 {[%clk 0:00:15]} 39. Rf7+ {[%clk 0:00:46]}  Kxd6 {[%clk 0:00:15]} 40. Be5+ {[%clk 0:00:32]}  Nxe5 {[%clk 0:00:15]} 41. Rxh7 {[%clk 0:00:27]}  Nc4 {[%clk 0:00:15]} 42. Kd3 {[%clk 0:00:24]}  Na3 {[%clk 0:00:16]} 43. Rb2 {[%clk 0:00:22]}  Rc2 {[%clk 0:00:16]} 44. Rxb3 {[%clk 0:00:22]}  Rxb3+ {[%clk 0:00:15]} 45. Ke4 {[%clk 0:00:23]}  Nb5 {[%clk 0:00:15]} 0-1


[Site "https://www.chess.com"]

[Event "Titled Tuesday Blitz March 14 Late 2023"]
[White "Tagliati, Eleonore"]
[Black "Hajiyev, Kanan"]
[WhiteFideId "45172234"]
[BlackFideId "13404148"]
[WhiteElo "2250"]
[BlackElo "2103"]
[Result "0-1"]
[Round "10"]
[TimeControl "180+2"]
[Date "2023.03.14"]
[WhiteClock "0:00:38"]
[BlackClock "0:00:23"]

1. e4 {[%clk 0:03:00]}  c6 {[%clk 0:02:59]} 2. Nf3 {[%clk 0:03:00]}  d5 {[%clk 0:03:00]} 3. Nc3 {[%clk 0:03:01]}  a6 {[%clk 0:03:00]} 4. d4 {[%clk 0:02:59]}  Bg4 {[%clk 0:03:00]} 5. exd5 {[%clk 0:02:54]}  cxd5 {[%clk 0:02:59]} 6. Bd3 {[%clk 0:02:54]}  Nc6 {[%clk 0:02:58]} 7. Be3 {[%clk 0:02:50]}  e6 {[%clk 0:02:58]} 8. h3 {[%clk 0:02:50]}  Bh5 {[%clk 0:02:58]} 9. O-O {[%clk 0:02:46]}  Nf6 {[%clk 0:02:57]} 10. Nb1 {[%clk 0:02:44]}  Qb6 {[%clk 0:02:55]} 11. Nbd2 {[%clk 0:02:35]}  Bd6 {[%clk 0:02:47]} 12. Rb1 {[%clk 0:02:30]}  O-O {[%clk 0:02:46]} 13. c3 {[%clk 0:02:30]}  Qc7 {[%clk 0:02:44]} 14. a4 {[%clk 0:02:25]}  Rab8 {[%clk 0:02:33]} 15. Qc2 {[%clk 0:02:24]}  Rfc8 {[%clk 0:02:32]} 16. Qd1 {[%clk 0:02:18]}  Na5 {[%clk 0:02:00]} 17. b4 {[%clk 0:02:09]}  Nc4 {[%clk 0:02:01]} 18. Nxc4 {[%clk 0:02:09]}  dxc4 {[%clk 0:02:01]} 19. Bc2 {[%clk 0:02:04]}  Nd5 {[%clk 0:02:01]} 20. Qd2 {[%clk 0:02:01]}  Bxf3 {[%clk 0:01:55]} 21. gxf3 {[%clk 0:02:02]}  Qe7 {[%clk 0:01:39]} 22. Bg5 {[%clk 0:01:56]}  Qc7 {[%clk 0:01:31]} 23. Kh1 {[%clk 0:01:52]}  Bf4 {[%clk 0:01:30]} 24. Bxf4 {[%clk 0:01:51]}  Qxf4 {[%clk 0:01:31]} 25. Qxf4 {[%clk 0:01:49]}  Nxf4 {[%clk 0:01:32]} 26. Kh2 {[%clk 0:01:48]}  Ne2 {[%clk 0:01:26]} 27. Be4 {[%clk 0:01:30]}  Nxc3 {[%clk 0:01:24]} 28. Ra1 {[%clk 0:01:29]}  f5 {[%clk 0:01:12]} 29. Bc2 {[%clk 0:01:28]}  Rd8 {[%clk 0:01:11]} 30. Ra3 {[%clk 0:01:20]}  Ne2 {[%clk 0:01:08]} 31. Re1 {[%clk 0:01:13]}  Nxd4 {[%clk 0:01:08]} 32. Bb1 {[%clk 0:01:13]}  Nxf3+ {[%clk 0:01:08]} 33. Rxf3 {[%clk 0:01:13]}  Kf7 {[%clk 0:01:05]} 34. Rc3 {[%clk 0:01:12]}  b5 {[%clk 0:01:05]} 35. axb5 {[%clk 0:01:12]}  axb5 {[%clk 0:01:05]} 36. Kg3 {[%clk 0:01:07]}  Kf6 {[%clk 0:01:04]} 37. Rce3 {[%clk 0:01:07]}  Rb6 {[%clk 0:00:58]} 38. Kf3 {[%clk 0:01:05]}  g5 {[%clk 0:00:56]} 39. Re5 {[%clk 0:01:02]}  Rd2 {[%clk 0:00:47]} 40. Rc5 {[%clk 0:01:00]}  Rb2 {[%clk 0:00:45]} 41. Ke3 {[%clk 0:00:49]}  Rxb4 {[%clk 0:00:42]} 42. Kd4 {[%clk 0:00:47]}  Rd6+ {[%clk 0:00:41]} 43. Kc3 {[%clk 0:00:44]}  Rb3+ {[%clk 0:00:41]} 44. Kc2 {[%clk 0:00:44]}  h5 {[%clk 0:00:27]} 45. Ba2 {[%clk 0:00:41]}  Ra3 {[%clk 0:00:24]} 46. Kb2 {[%clk 0:00:40]}  Ra5 {[%clk 0:00:24]} 47. Ree5 {[%clk 0:00:38]}  Rd2+ {[%clk 0:00:23]} 48. Kb1 {[%clk 0:00:37]}  Raxa2 {[%clk 0:00:22]} 49. Rxb5 {[%clk 0:00:36]}  Rdb2+ {[%clk 0:00:21]} 50. Rxb2 {[%clk 0:00:36]}  Rxb2+ {[%clk 0:00:22]} 51. Kxb2 {[%clk 0:00:37]}  Kxe5 {[%clk 0:00:23]} 52. Kc3 {[%clk 0:00:38]}  Kd5 {[%clk 0:00:23]} 53. f3 {[%clk 0:00:38]}  h4 {[%clk 0:00:23]} 0-1


[Site "https://www.chess.com"]

[Event "Titled Tuesday Blitz March 14 Late 2023"]
[White "Grycel, Kamil"]
[Black "Romero Ruscalleda, Josep"]
[WhiteFideId "1115499"]
[BlackFideId "2231859"]
[WhiteElo "2459"]
[BlackElo "2183"]
[Result "1-0"]
[Round "10"]
[TimeControl "180+2"]
[Date "2023.03.14"]
[WhiteClock "0:00:28"]
[BlackClock "0:00:22"]

1. b3 {[%clk 0:03:00]}  d6 {[%clk 0:02:59]} 2. d4 {[%clk 0:02:58]}  g6 {[%clk 0:02:58]} 3. Bb2 {[%clk 0:02:58]}  Bg7 {[%clk 0:02:59]} 4. Nf3 {[%clk 0:02:58]}  Nd7 {[%clk 0:02:59]} 5. e3 {[%clk 0:02:58]}  c5 {[%clk 0:02:59]} 6. Be2 {[%clk 0:02:54]}  Ngf6 {[%clk 0:02:59]} 7. O-O {[%clk 0:02:48]}  O-O {[%clk 0:02:58]} 8. c4 {[%clk 0:02:34]}  b6 {[%clk 0:02:56]} 9. d5 {[%clk 0:02:32]}  Qc7 {[%clk 0:02:55]} 10. Nc3 {[%clk 0:02:32]}  a6 {[%clk 0:02:53]} 11. a4 {[%clk 0:02:25]}  Bb7 {[%clk 0:02:49]} 12. Qc2 {[%clk 0:02:23]}  e6 {[%clk 0:02:48]} 13. e4 {[%clk 0:02:21]}  e5 {[%clk 0:02:47]} 14. Ne1 {[%clk 0:02:12]}  Ne8 {[%clk 0:02:39]} 15. Nd3 {[%clk 0:02:12]}  f5 {[%clk 0:02:38]} 16. f4 {[%clk 0:02:09]}  exf4 {[%clk 0:02:30]} 17. Nxf4 {[%clk 0:02:08]}  Rf7 {[%clk 0:02:07]} 18. Ne6 {[%clk 0:02:06]}  Bd4+ {[%clk 0:02:07]} 19. Kh1 {[%clk 0:02:00]}  Qc8 {[%clk 0:02:07]} 20. exf5 {[%clk 0:01:54]}  gxf5 {[%clk 0:01:56]} 21. Bh5 {[%clk 0:01:53]}  Rf6 {[%clk 0:01:45]} 22. Rxf5 {[%clk 0:01:35]}  Rxe6 {[%clk 0:01:23]} 23. Bf7+ {[%clk 0:01:24]}  Kh8 {[%clk 0:01:22]} 24. Bxe6 {[%clk 0:01:21]}  Qd8 {[%clk 0:01:23]} 25. Ne2 {[%clk 0:01:12]}  Bxb2 {[%clk 0:01:17]} 26. Qxb2+ {[%clk 0:01:12]}  Ne5 {[%clk 0:01:16]} 27. Raf1 {[%clk 0:01:06]}  Ng7 {[%clk 0:01:15]} 28. Rf8+ {[%clk 0:00:56]}  Qxf8 {[%clk 0:01:15]} 29. Rxf8+ {[%clk 0:00:56]}  Rxf8 {[%clk 0:01:15]} 30. Kg1 {[%clk 0:00:53]}  Rf6 {[%clk 0:01:07]} 31. Bh3 {[%clk 0:00:47]}  Nh5 {[%clk 0:01:04]} 32. Qd2 {[%clk 0:00:44]}  h6 {[%clk 0:01:00]} 33. Be6 {[%clk 0:00:38]}  Kg7 {[%clk 0:00:58]} 34. h3 {[%clk 0:00:32]}  Kf8 {[%clk 0:00:50]} 35. Qe3 {[%clk 0:00:31]}  Ng7 {[%clk 0:00:45]} 36. Nf4 {[%clk 0:00:30]}  Ke7 {[%clk 0:00:44]} 37. Qg3 {[%clk 0:00:28]}  Kf8 {[%clk 0:00:38]} 38. Kh2 {[%clk 0:00:27]}  b5 {[%clk 0:00:36]} 39. axb5 {[%clk 0:00:27]}  axb5 {[%clk 0:00:36]} 40. Nd3 {[%clk 0:00:26]}  Nxe6 {[%clk 0:00:30]} 41. Nxe5 {[%clk 0:00:25]}  dxe5 {[%clk 0:00:25]} 42. Qxe5 {[%clk 0:00:26]}  Ke7 {[%clk 0:00:22]} 43. dxe6 {[%clk 0:00:22]}  Rxe6 {[%clk 0:00:18]} 44. Qc7+ {[%clk 0:00:23]}  Kf6 {[%clk 0:00:19]} 45. Qxb7 {[%clk 0:00:23]}  bxc4 {[%clk 0:00:19]} 46. bxc4 {[%clk 0:00:24]}  Ke5 {[%clk 0:00:19]} 47. Qd5+ {[%clk 0:00:24]}  Kf6 {[%clk 0:00:19]} 48. Qxc5 {[%clk 0:00:24]}  Re5 {[%clk 0:00:19]} 49. Qd4 {[%clk 0:00:24]}  Ke6 {[%clk 0:00:19]} 50. Qxe5+ {[%clk 0:00:25]}  Kxe5 {[%clk 0:00:20]} 51. Kg3 {[%clk 0:00:25]}  Kd4 {[%clk 0:00:20]} 52. Kh4 {[%clk 0:00:26]}  Kxc4 {[%clk 0:00:20]} 53. Kh5 {[%clk 0:00:26]}  Kd5 {[%clk 0:00:21]} 54. Kxh6 {[%clk 0:00:27]}  Ke6 {[%clk 0:00:22]} 55. g4 {[%clk 0:00:28]} 1-0


[Site "https://www.chess.com"]

[Event "Titled Tuesday Blitz March 14 Late 2023"]
[White "Goncalves, Davi Sulzbacher"]
[Black "Kohler, Aran"]
[WhiteFideId "2154510"]
[BlackFideId "1002856"]
[WhiteElo "2182"]
[BlackElo "2274"]
[Result "0-1"]
[Round "10"]
[TimeControl "180+2"]
[Date "2023.03.14"]
[WhiteClock "0:00:04"]
[BlackClock "0:00:49"]

1. Nf3 {[%clk 0:03:00]}  Nf6 {[%clk 0:02:59]} 2. g3 {[%clk 0:03:01]}  d5 {[%clk 0:02:58]} 3. Bg2 {[%clk 0:03:02]}  c6 {[%clk 0:02:59]} 4. O-O {[%clk 0:03:03]}  Bg4 {[%clk 0:02:59]} 5. c4 {[%clk 0:03:01]}  e6 {[%clk 0:02:59]} 6. Qb3 {[%clk 0:03:00]}  Qb6 {[%clk 0:02:55]} 7. d3 {[%clk 0:03:00]}  Qxb3 {[%clk 0:02:54]} 8. axb3 {[%clk 0:03:00]}  Nbd7 {[%clk 0:02:54]} 9. Be3 {[%clk 0:02:55]}  a6 {[%clk 0:02:47]} 10. Nc3 {[%clk 0:02:52]}  Bd6 {[%clk 0:02:34]} 11. h3 {[%clk 0:02:28]}  Bxf3 {[%clk 0:02:23]} 12. Bxf3 {[%clk 0:02:29]}  O-O {[%clk 0:02:18]} 13. Rfc1 {[%clk 0:02:19]}  Rac8 {[%clk 0:02:13]} 14. g4 {[%clk 0:02:14]}  h6 {[%clk 0:02:12]} 15. g5 {[%clk 0:01:35]}  hxg5 {[%clk 0:02:08]} 16. Bxg5 {[%clk 0:01:36]}  d4 {[%clk 0:02:03]} 17. Ne4 {[%clk 0:01:34]}  Nxe4 {[%clk 0:02:03]} 18. Bxe4 {[%clk 0:01:35]}  f6 {[%clk 0:01:58]} 19. Bd2 {[%clk 0:01:32]}  Nc5 {[%clk 0:01:46]} 20. b4 {[%clk 0:01:18]}  Nb3 {[%clk 0:01:45]} 21. c5 {[%clk 0:01:06]}  Bb8 {[%clk 0:01:39]} 22. Rd1 {[%clk 0:01:02]}  Nxa1 {[%clk 0:01:38]} 23. Rxa1 {[%clk 0:01:03]}  f5 {[%clk 0:01:37]} 24. Bg2 {[%clk 0:01:02]}  e5 {[%clk 0:01:37]} 25. f4 {[%clk 0:00:45]}  exf4 {[%clk 0:01:35]} 26. Kf2 {[%clk 0:00:42]}  Rce8 {[%clk 0:01:33]} 27. Bf3 {[%clk 0:00:41]}  Kh7 {[%clk 0:01:29]} 28. Rg1 {[%clk 0:00:40]}  g6 {[%clk 0:01:27]} 29. Kf1 {[%clk 0:00:32]}  Be5 {[%clk 0:01:22]} 30. Be1 {[%clk 0:00:32]}  Re7 {[%clk 0:01:21]} 31. Bh4 {[%clk 0:00:32]}  Bf6 {[%clk 0:01:20]} 32. Be1 {[%clk 0:00:28]}  g5 {[%clk 0:01:16]} 33. Bd2 {[%clk 0:00:25]}  Rg7 {[%clk 0:01:15]} 34. Bg2 {[%clk 0:00:16]}  Be5 {[%clk 0:01:12]} 35. Rh1 {[%clk 0:00:16]}  Kg6 {[%clk 0:01:11]} 36. Bf3 {[%clk 0:00:16]}  Kf6 {[%clk 0:01:10]} 37. Rg1 {[%clk 0:00:16]}  Rfg8 {[%clk 0:01:10]} 38. Be1 {[%clk 0:00:14]}  g4 {[%clk 0:01:08]} 39. Bh4+ {[%clk 0:00:13]}  Ke6 {[%clk 0:01:08]} 40. hxg4 {[%clk 0:00:09]}  fxg4 {[%clk 0:01:08]} 41. Be4 {[%clk 0:00:09]}  Rh8 {[%clk 0:01:00]} 42. Be1 {[%clk 0:00:07]}  Rh2 {[%clk 0:00:56]} 43. Bd2 {[%clk 0:00:04]}  f3 {[%clk 0:00:49]} 0-1


[Site "https://www.chess.com"]